fUSD/lending_fUSD_20250421
["ID","MTS","AMOUNT","RATE_DAILY","PERIOD"]
[358560955,1745261464076,-500.0,0.00044383,7]
[358560956,1745261464085,-500.0,0.00044383,7]
[358560957,1745261464095,-3342.96,0.00044383,7]
[358560958,1745261464104,-1451.64,0.00044383,7]
[358560959,1745261464114,-500.0,0.00044383,7]
[358560960,1745261464123,-1164.05,0.00044383,7]
[358560961,1745261464132,-500.0,0.00044383,7]
[358560962,1745261464142,-500.0,0.00044383,7]
[358560963,1745261464151,-500.0,0.00044383,7]
[358560964,1745261464161,-500.0,0.00044383,7]
[358560965,1745261464170,-483.61157394,0.00044383,7]
[358560966,1745261464179,-697.72,0.00044383,7]
[358560967,1745261464188,-500.0,0.00044383,7]
[358560968,1745261464198,-1740.68,0.00044383,7]
[358560969,1745261464207,-500.0,0.00044383,7]
[358560970,1745261464216,-500.0,0.00044383,7]
[358560971,1745261464232,-500.0,0.00044383,7]
[358560972,1745261464242,-500.0,0.00044383,7]
[358560973,1745261464251,-2907.22,0.00044383,7]
[358560974,1745261464261,-500.0,0.00044383,7]
[358560975,1745261464272,-500.0,0.00044383,7]
[358560976,1745261464282,-500.0,0.00044383,7]
[358560977,1745261464291,-690.4,0.00044383,7]
[358560978,1745261464301,-500.0,0.00044383,7]
[358560979,1745261464311,-500.0,0.00044383,7]
[358560980,1745261464321,-500.0,0.00044383,7]
[358560981,1745261464330,-250.0,0.00044383,7]
[358560982,1745261464340,-1062.56,0.00044383,7]
[358560983,1745261464349,-1796.43,0.00044383,7]
[358560984,1745261464360,-500.0,0.00044383,7]
[358560985,1745261464370,-1989.66,0.00044383,7]
[358560986,1745261464379,-500.0,0.00044383,7]
[358560987,1745261464389,-500.0,0.00044383,7]
[358560988,1745261464399,-500.0,0.00044383,7]
[358560989,1745261464408,-702.97,0.00044383,7]
[358560990,1745261464418,-500.0,0.00044383,7]
[358560991,1745261464429,-2497.77,0.00044383,7]
[358560992,1745261464438,-1022.34,0.00044383,7]
[358560993,1745261464447,-500.0,0.00044383,7]
[358560994,1745261464456,-629.62,0.00044383,7]
[358560995,1745261464466,-500.0,0.00044383,30]
[358560996,1745261464475,-500.0,0.00044383,7]
[358560997,1745261464485,-500.0,0.00044383,7]
[358560998,1745261464495,-500.0,0.00044383,7]
[358560999,1745261464504,-3411.73,0.00044383,7]
[358561000,1745261464514,-500.0,0.00044383,7]
[358561001,1745261464523,-500.0,0.00044383,7]
[358561002,1745261464533,-500.0,0.00044383,7]
[358561003,1745261464543,-1248.17,0.00044383,7]
[358561004,1745261464552,-500.0,0.00044383,7]
[358561005,1745261464562,-500.0,0.00044383,7]
[358561006,1745261464572,-500.0,0.00044383,7]
[358561007,1745261464581,-500.0,0.00044383,7]
[358561008,1745261464591,-500.0,0.00044383,7]
[358561009,1745261464601,-500.0,0.00044383,7]
[358561010,1745261464610,-500.0,0.00044383,7]
[358561011,1745261464619,-500.0,0.00044383,7]
[358561012,1745261464629,-500.0,0.00044383,7]
[358561013,1745261464639,-500.0,0.00044383,7]
[358561014,1745261464649,-500.0,0.00044383,7]
[358561015,1745261464660,-500.0,0.00044383,7]
[358561016,1745261464669,-1482.11,0.00044383,7]
[358561017,1745261464679,-500.0,0.00044383,7]
[358561018,1745261464689,-615.02,0.00044383,7]
[358561019,1745261464699,-151.0,0.00044383,14]
[358561020,1745261464709,-559.70547074,0.00044383,7]
[358561021,1745261464718,-500.0,0.00044383,7]
[358561022,1745261464728,-500.0,0.00044383,7]
[358561023,1745261464739,-1038.76,0.00044383,7]
[358561024,1745261464749,-500.0,0.00044383,7]
[358561025,1745261464759,-500.0,0.00044383,7]
[358561026,1745261464768,-500.0,0.00044383,7]
[358561027,1745261464777,-512.33177266,0.00044383,7]
[358561028,1745261464787,-500.0,0.00044383,7]
[358561029,1745261464796,-500.54605761,0.00044383,7]
[358561030,1745261464806,-161.16527745,0.00044383,7]
[358561031,1745261464815,-500.0,0.00044383,7]
[358561032,1745261464825,-500.0,0.00044383,7]
[358561033,1745261464835,-500.0,0.00044383,7]
[358561034,1745261464844,-1114.55,0.00044383,7]
[358561035,1745261464853,-1118.8,0.00044383,7]
[358561036,1745261464863,-557.35541065,0.00044383,7]
[358561037,1745261464872,-500.0,0.00044383,7]
[358561038,1745261464882,-500.0,0.00044383,7]
[358561039,1745261464892,-500.0,0.00044383,7]
[358561040,1745261464902,-500.0,0.00044383,7]
[358561041,1745261464912,-500.0,0.00044383,7]
[358561042,1745261464922,-500.0,0.00044383,7]
[358561043,1745261464933,-500.0,0.00044383,7]
[358561044,1745261464944,-1432.55,0.00044383,7]
[358561045,1745261464954,-604.12,0.00044383,7]
[358561046,1745261464964,-451.36685248,0.00044383,7]
[358561047,1745261464974,-151.0,0.00044383,14]
[358561048,1745261464984,-500.0,0.00044383,7]
[358561049,1745261464995,-500.0,0.00044383,7]
[358561050,1745261465005,-869.15,0.00044383,7]
[358561051,1745261465014,-1014.17,0.00044383,7]
[358561052,1745261465024,-500.0,0.00044383,7]
[358561053,1745261465038,-1532.99,0.00044383,7]
[358561054,1745261465048,-2949.11,0.00044383,7]
[358561055,1745261465059,-500.0,0.00044383,7]
[358561056,1745261465068,-500.0,0.00044383,7]
[358561057,1745261465078,-575.53,0.00044383,7]
[358561058,1745261465087,-500.0,0.00044383,7]
[358561059,1745261465098,-2522.1,0.00044383,7]
[358561060,1745261465108,-154848.65,0.00044383,7]
[358561061,1745261465117,-1561.28,0.00044383,7]
[358561062,1745261465127,-500.0,0.00044383,7]
[358561063,1745261465137,-500.0,0.00044383,7]
[358561064,1745261465146,-500.0,0.00044383,7]
[358561065,1745261465156,-500.0,0.00044383,7]
[358561066,1745261465165,-2430.19,0.00044383,7]
[358561067,1745261465175,-933.79,0.00044383,7]
[358561068,1745261465184,-500.0,0.00044383,7]
[358561069,1745261465193,-500.0,0.00044383,7]
[358561070,1745261465203,-339.67510776,0.00044383,7]
[358561071,1745261465212,-500.0,0.00044383,7]
[358561072,1745261465222,-2577.18,0.00044383,7]
[358561073,1745261465231,-500.0,0.00044383,7]
[358561074,1745261465240,-500.0,0.00044383,7]
[358561075,1745261465250,-151.0,0.00044383,14]
[358561076,1745261465259,-500.0,0.00044383,7]
[358561077,1745261465269,-10053.5,0.00044383,7]
[358561078,1745261465278,-500.0,0.00044383,7]
[358561079,1745261465290,-500.0,0.00044383,7]
[358561080,1745261465299,-500.0,0.00044383,7]
[358561081,1745261465309,-500.0,0.00044383,7]
[358561082,1745261465319,-1047.61,0.00044383,7]
[358561083,1745261465328,-500.0,0.00044383,7]
[358561084,1745261465338,-500.0,0.00044383,7]
[358561085,1745261465348,-500.0,0.00044383,7]
[358561086,1745261465357,-500.0,0.00044383,7]
[358561087,1745261465367,-500.0,0.00044383,7]
[358561088,1745261465376,-508.55578161,0.00044383,7]
[358561089,1745261465386,-500.0,0.00044383,7]
[358561090,1745261465395,-1000.0,0.00044383,120]
[358561091,1745261465405,-707.51,0.00044383,7]
[358561092,1745261465415,-619.2,0.00044383,7]
[358561093,1745261465424,-3495.83,0.00044383,7]
[358561094,1745261465433,-500.0,0.00044383,7]
[358561095,1745261465443,-151.0,0.00044383,14]
[358561096,1745261465452,-851.79,0.00044383,7]
[358561097,1745261465461,-500.0,0.00044383,7]
[358561098,1745261465471,-7840.01,0.00044383,7]
[358561099,1745261465481,-500.0,0.00044383,7]
[358561100,1745261465491,-500.0,0.00044383,7]
[358561101,1745261465501,-959.59,0.00044383,7]
[358561102,1745261465511,-500.0,0.00044383,7]
[358561103,1745261465521,-151.0,0.00044383,14]
[358561104,1745261465532,-874.42,0.00044383,7]
[358561105,1745261465541,-2041.15,0.00044383,7]
[358561106,1745261465550,-627.73494628,0.00044383,7]
[358561107,1745261465561,-1459.69,0.00044383,7]
[358561108,1745261465571,-500.0,0.00044383,7]
[358561109,1745261465581,-500.0,0.00044383,7]
[358561110,1745261465591,-500.0,0.00044383,7]
[358561111,1745261465601,-1741.9,0.00044383,7]
[358561112,1745261465610,-1126.2,0.00044383,7]
[358561113,1745261465619,-500.0,0.00044383,7]
[358561114,1745261465629,-500.0,0.00044383,7]
[358561115,1745261465638,-650.59,0.00044383,7]
[358561116,1745261465647,-500.0,0.00044383,7]
[358561117,1745261465659,-3113.945901,0.00044383,14]
[358561118,1745261465669,-1407.15,0.00044383,7]
[358561119,1745261465679,-552.36829623,0.00044383,7]
[358561120,1745261465688,-400.57131153,0.00044383,7]
[358561121,1745261465850,-500.0,0.00044383,7]
[358561122,1745261465860,-3113.945901,0.00044383,14]
[358561123,1745261465869,-500.0,0.00044383,7]
[358561124,1745261465878,-500.0,0.00044383,7]
[358561125,1745261465888,-970.26,0.00044383,7]
[358561126,1745261465897,-500.0,0.00044383,7]
[358561127,1745261465907,-552.98,0.00044383,7]
[358561128,1745261465916,-934.17,0.00044383,7]
[358561129,1745261465926,-151.0,0.00044383,14]
[358561130,1745261465935,-151.0,0.00044383,14]
[358561131,1745261465944,-500.0,0.00044383,7]
[358561132,1745261465954,-500.0,0.00044383,7]
[358561133,1745261465965,-222.703088,0.00044383,14]
[358561134,1745261465975,-500.0,0.00044383,7]
[358561135,1745261465985,-500.0,0.00044383,7]
[358561136,1745261465994,-500.0,0.00044383,7]
[358561137,1745261466004,-500.0,0.00044383,7]
[358561138,1745261466013,-972.46,0.00044383,7]
[358561139,1745261466023,-1361.65,0.00044383,7]
[358561140,1745261466033,-500.0,0.00044383,7]
[358561141,1745261466042,-2096.63,0.00044383,7]
[358561142,1745261466052,-1471.6,0.00044383,7]
[358561143,1745261466061,-532.5307714,0.00044383,7]
[358561144,1745261466070,-2340.11,0.00044383,7]
[358561145,1745261466079,-418.0782578,0.00044383,7]
[358561146,1745261466089,-555.75,0.00044383,7]
[358561147,1745261466098,-2485.3,0.00044383,7]
[358561148,1745261466107,-500.0,0.00044383,7]
[358561149,1745261466116,-500.0,0.00044383,7]
[358561150,1745261466126,-500.0,0.00044383,7]
[358561151,1745261466135,-500.0,0.00044383,7]
[358561152,1745261466144,-1149.88,0.00044383,7]
[358561153,1745261466155,-500.0,0.00044383,7]
[358561154,1745261466164,-500.0,0.00044383,7]
[358561155,1745261466174,-610.29,0.00044383,7]
[358561156,1745261466183,-500.0,0.00044383,7]
[358561157,1745261466193,-236.23518238,0.00044383,7]
[358561158,1745261466203,-500.0,0.00044383,7]
[358561159,1745261466212,-2196.61,0.00044383,7]
[358561160,1745261466222,-3271.45,0.00044383,7]
[358561161,1745261466232,-830.23,0.00044383,7]
[358561162,1745261466242,-500.0,0.00044383,7]
[358561163,1745261466251,-1271.9,0.00044383,7]
[358561164,1745261466261,-500.0,0.00044383,7]
[358561165,1745261466271,-528.35,0.00044383,7]
[358561166,1745261466281,-1150.26,0.00044383,7]
[358561167,1745261466290,-2510.45,0.00044383,7]
[358561168,1745261466300,-500.0,0.00044383,7]
[358561169,1745261466310,-2816.38,0.00044383,7]
[358561170,1745261466319,-494.1042223,0.00044383,7]
[358561171,1745261466328,-627.86,0.00044383,7]
[358561172,1745261466338,-1035.24,0.00044383,7]
[358561173,1745261466347,-500.0,0.00044383,7]
[358561174,1745261466356,-780.148884,0.00044383,14]
[358561175,1745261466366,-1648.73,0.00044383,7]
[358561176,1745261466375,-500.0,0.00044383,7]
[358561177,1745261466384,-500.0,0.00044383,7]
[358561178,1745261466394,-500.0,0.00044383,7]
[358561179,1745261466403,-782.41,0.00044383,7]
[358561180,1745261466412,-500.0,0.00044383,7]
[358561181,1745261466422,-780.148884,0.00044383,14]
[358561182,1745261466431,-927.83,0.00044383,7]
[358561183,1745261466440,-500.0,0.00044383,7]
[358561184,1745261466450,-151.0,0.00044383,14]
[358561185,1745261466460,-808.51,0.00044383,7]
[358561186,1745261466469,-2404.36,0.00044383,7]
[358561187,1745261466479,-550.89765775,0.00044383,7]
[358561188,1745261466488,-500.0,0.00044383,7]
[358561189,1745261466497,-500.0,0.00044383,7]
[358561190,1745261466507,-500.0,0.00044383,7]
[358561191,1745261466517,-1620.46,0.00044383,7]
[358561192,1745261466526,-1822.64,0.00044383,7]
[358561193,1745261466537,-500.0,0.00044383,7]
[358561194,1745261466546,-500.0,0.00044383,7]
[358561195,1745261466555,-500.0,0.00044383,7]
[358561196,1745261466567,-547.63,0.00044383,7]
[358561197,1745261466576,-500.0,0.00044383,7]
[358561198,1745261466585,-500.0,0.00044383,7]
[358561199,1745261466595,-1786.61,0.00044383,7]
[358561200,1745261466604,-500.0,0.00044383,7]
[358561201,1745261466614,-500.0,0.00044383,7]
[358561202,1745261466623,-3923.46,0.00044383,7]
[358561203,1745261466632,-500.0,0.00044383,7]
[358561204,1745261466641,-597.7,0.00044383,7]
[358561205,1745261466652,-1452.45,0.00044383,7]
[358561206,1745261466664,-500.0,0.00044383,7]
[358561207,1745261466673,-1137.02,0.00044383,7]
[358561208,1745261466682,-500.0,0.00044383,7]
[358561209,1745261466691,-1455.5,0.00044383,7]
[358561210,1745261466705,-405.16,0.00044383,7]
[358561211,1745261466715,-734.33,0.00044383,7]
[358561212,1745261466724,-500.0,0.00044383,7]
[358561213,1745261466735,-2422.45,0.00044383,7]
[358561214,1745261466744,-500.0,0.00044383,7]
[358561215,1745261466753,-3033.95,0.00044383,7]
[358561216,1745261466762,-1475.36,0.00044383,7]
[358561217,1745261466772,-655.72,0.00044383,7]
[358561218,1745261466781,-500.0,0.00044383,7]
[358561219,1745261466790,-151.0,0.00044383,14]
[358561220,1745261466800,-500.0,0.00044383,7]
[358561221,1745261466809,-500.0,0.00044383,7]
[358561222,1745261466818,-500.0,0.00044383,7]
[358561223,1745261466827,-505.77487227,0.00044383,7]
[358561224,1745261466837,-8206.64,0.00044383,7]
[358561225,1745261466847,-1303.83,0.00044383,7]
[358561226,1745261466855,-874.04,0.00044383,7]
[358561227,1745261466865,-500.0,0.00044383,7]
[358561228,1745261466874,-1582.67,0.00044383,7]
[358561229,1745261466883,-1748.44,0.00044383,2]
[358561230,1745261466892,-1281.01,0.00044383,7]
[358561231,1745261466902,-765.13,0.00044383,7]
[358561232,1745261466911,-650.33,0.00044383,7]
[358561233,1745261466920,-500.0,0.00044383,7]
[358561234,1745261466929,-500.0,0.00044383,5]
[358561235,1745261466938,-500.0,0.00044383,7]
[358561236,1745261466947,-500.0,0.00044383,7]
[358561237,1745261466957,-500.0,0.00044383,7]
[358561238,1745261466967,-500.0,0.00044383,7]
[358561239,1745261466976,-500.0,0.00044383,7]
[358561240,1745261466985,-979.49,0.00044383,7]
[358561241,1745261466994,-500.0,0.00044383,7]
[358561242,1745261467004,-3997.21,0.00044383,7]
[358561243,1745261467013,-500.0,0.00044383,7]
[358561244,1745261467023,-500.0,0.00044383,7]
[358561245,1745261467033,-500.0,0.00044383,7]
[358561246,1745261467042,-1493.49,0.00044383,7]
[358561247,1745261467052,-804.6,0.00044383,7]
[358561248,1745261467061,-307.450642,0.00044383,14]
[358561249,1745261467070,-1541.92,0.00044383,7]
[358561250,1745261467079,-500.0,0.00044383,7]
[358561251,1745261467089,-500.0,0.00044383,7]
[358561252,1745261467098,-1138.65,0.00044383,7]
[358561253,1745261467107,-151.0,0.00044383,14]
[358561254,1745261467116,-500.0,0.00044383,7]
[358561255,1745261467125,-459.55446664,0.00044383,7]
[358561256,1745261467134,-2559.48,0.00044383,7]
[358561257,1745261467143,-719.72,0.00044383,7]
[358561258,1745261467152,-500.0,0.00044383,2]
[358561259,1745261467162,-500.0,0.00044383,7]
[358561260,1745261467170,-307.450642,0.00044383,14]
[358561261,1745261467179,-151.0,0.00044383,14]
[358561262,1745261467188,-4357.71,0.00044383,7]
[358561263,1745261467197,-500.0,0.00044383,7]
[358561264,1745261467206,-500.0,0.00044383,7]
[358561265,1745261467215,-1333.94,0.00044383,7]
[358561266,1745261467224,-500.0,0.00044383,7]
[358561267,1745261467233,-595.12794859,0.00044383,7]
[358561268,1745261467244,-1240.15,0.00044383,7]
[358561269,1745261467253,-500.0,0.00044383,7]
[358561270,1745261467262,-1508.0,0.00044383,7]
[358561271,1745261467271,-500.0,0.00044383,7]
[358561272,1745261467281,-3346.63,0.00044383,7]
[358561273,1745261467290,-728.08,0.00044383,7]
[358561274,1745261467300,-500.0,0.00044383,7]
[358561275,1745261467310,-500.0,0.00044383,7]
[358561276,1745261467319,-500.0,0.00044383,7]
[358561277,1745261467329,-500.0,0.00044383,7]
[358561278,1745261467338,-500.0,0.00044383,7]
[358561279,1745261467347,-500.0,0.00044383,7]
[358561280,1745261467357,-500.0,0.00044383,7]
[358561281,1745261467367,-1500.98,0.00044383,7]
[358561282,1745261467376,-500.0,0.00044383,7]
[358561283,1745261467385,-500.0,0.00044383,7]
[358561284,1745261467395,-500.0,0.00044383,7]
[358561285,1745261467405,-500.0,0.00044383,7]
[358561286,1745261467415,-152.0,0.00044384,10]
[358561287,1745261467424,-166.66785936,0.0004439,120]
[358561288,1745261467434,-3600.0,0.000444,2]
[358561289,1745261467443,-200.0,0.000444,59]
[358561290,1745261467452,-151.0,0.000444,14]
[358561291,1745261467461,-151.0,0.000444,14]
[358561292,1745261467471,-13804.0,0.0004444,30]
[358561293,1745261467480,-167.6636,0.00044488,30]
[358561294,1745261467490,-167.6636,0.00044688,30]
[358561295,1745261467499,-3263.8,0.000447,14]
[358561296,1745261467510,-763.68,0.00044754,2]
[358561297,1745261467520,-177.0,0.0004487,120]
[358561298,1745261467529,-181.0,0.0004487,120]
[358561299,1745261467539,-177.0,0.0004488,120]
[358561300,1745261467549,-181.0,0.0004488,120]
[358561301,1745261467558,-177.0,0.0004488,120]
[358561302,1745261467567,-181.0,0.0004488,120]
[358561303,1745261467577,-167.6636,0.00044888,30]
[358561304,1745261467586,-177.0,0.0004489,120]
[358561305,1745261467595,-181.0,0.0004489,120]
[358561306,1745261467606,-177.0,0.0004489,120]
[358561307,1745261467615,-181.0,0.0004489,120]
[358561308,1745261467625,-500.0,0.00044899,30]
[358561309,1745261467634,-500.0,0.00044899,30]
[358561310,1745261467644,-500.0,0.00044899,30]
[358561311,1745261467653,-500.0,0.00044899,30]
[358561312,1745261467667,-500.0,0.00044899,30]
[358561313,1745261467676,-13013.39438139,0.000449,7]
[358561314,1745261467686,-1220.63192683,0.000449,120]
[358561315,1745261467695,-122086.0557878,0.000449,2]
[358561316,1745261467706,-3218.0914263,0.000449,2]
[358561317,1745261467715,-32446.1166112,0.000449,2]
[358561318,1745261467725,-5901.5780484,0.000449,2]
[358561319,1745261467735,-500.0,0.00044917,30]
[358561320,1745261467744,-500.0,0.00044917,30]
[358561321,1745261467754,-500.0,0.00044917,30]
[358561322,1745261467763,-500.0,0.00044917,30]
[358561323,1745261467772,-500.0,0.00044917,30]
[358561324,1745261467782,-500.0,0.00044917,30]
[358561325,1745261467791,-618.99226933,0.00044917,30]
[358561326,1745261467801,-37307.304,0.00044918,120]
[358561327,1745261467810,-37307.304,0.00044918,120]
[358561328,1745261467819,-7643.65711785,0.00044918,120]
[358561329,1745261468720,-500.0,0.00043835,7]
[358561330,1745261468730,-306.0,0.00044918,120]
[358561331,1745261468746,-6922.40220389,0.00044918,120]
[358561332,1745261469419,-761.0,0.000222,2]
[358561333,1745261469429,-1129.0,0.00027778,2]
[358561334,1745261469438,-1129.0,0.00030778,2]
[358561335,1745261469447,-1024.6795,0.000384,2]
[358561336,1745261469456,-546.808863,0.00043835,14]
[358561337,1745261469467,-500.0,0.00044383,7]
[358561338,1745261469476,-546.808863,0.00044383,14]
[358561339,1745261469485,-10962.48623851,0.00044918,120]
[358561340,1745261471198,-500.0,0.00019886,2]
[358561341,1745261471208,-316.7046194,0.0002,2]
[358561342,1745261471224,-397.2953806,0.0002,2]
[358561343,1745261471234,-151.0,0.00043835,14]
[358561344,1745261471244,-185.92973353,0.00043835,14]
[358561345,1745261471432,-360.87912947,0.00043835,14]
[358561346,1745261471442,-151.0,0.00044383,14]
[358561347,1745261471452,-546.808863,0.00044383,14]
[358561348,1745261471461,-516.15600753,0.00044918,120]
[358561367,1745262437886,-250.0,0.00019736,2]
[358561368,1745262437908,-250.0,0.0001978,2]
[358561369,1745262437931,-300.0,0.00019785,2]
[358561370,1745262437954,-300.0,0.00019785,2]
[358561371,1745262437975,-2500.0,0.00019786,2]
[358561372,1745262437998,-2500.0,0.00019786,2]
[358561373,1745262438020,-12073.7043,0.00019886,2]
[358561374,1745262438043,-1000.0,0.00019886,2]
[358561375,1745262438066,-250.0,0.00021,2]
[358561376,1745262438091,-420.0,0.00021652,2]
[358561377,1745262438112,-250.0,0.00021655,2]
[358561378,1745262438134,-300.0,0.00023,2]
[358561379,1745262438158,-587.0,0.00023695,2]
[358561380,1745262438179,-350.0,0.00025,2]
[358561381,1745262438201,-823.0,0.00025932,2]
[358561382,1745262438222,-400.0,0.00027,2]
[358561383,1745262438244,-1152.0,0.00028379,2]
[358561384,1745262438265,-450.0,0.00029,2]
[358561385,1745262438286,-761.0,0.000302,2]
[358561386,1745262438308,-500.0,0.00031,2]
[358561387,1745262438330,-1613.0,0.00031057,3]
[358561388,1745262438351,-372.0,0.000313,2]
[358561389,1745262438372,-163.78,0.00032877,30]
[358561390,1745262438394,-550.0,0.00033,2]
[358561391,1745262438417,-5515.95556644,0.000333,11]
[358561392,1745262438439,-2258.0,0.00033988,3]
[358561393,1745262438462,-305.49,0.00034707,2]
[358561394,1745262438484,-600.0,0.00035,2]
[358561395,1745262438506,-161.84,0.00035279,2]
[358561396,1745262438528,-426.49,0.00035378,30]
[358561397,1745262438551,-16.74013356,0.00036225,2]
[358561404,1745262632170,-372.0,0.000302,2]
[358561405,1745262632181,-152.35660561,0.00036224,2]
[358561406,1745262632196,-250.0,0.00036225,2]
[358561407,1745262632211,-183.25986644,0.00036225,2]
[358561408,1745262632226,-250.0,0.00036628,2]
[358561409,1745262632240,-658.45052272,0.00036818,5]
[358561410,1745262632258,-351.841098,0.00036818,5]
[358561411,1745262632275,-263.50837928,0.00036818,5]
[358561412,1745262632290,-278.47386204,0.00036871,2]
[358561413,1745262632305,-305.49,0.00036971,2]
[358561414,1745262632318,-136.53775868,0.00037,2]
[358561415,1745262632336,-513.46224132,0.00037,2]
[358561416,1745262632350,-299.73,0.00037,2]
[358561417,1745262632363,-1269.18,0.00037247,5]
[358561418,1745262632374,-400.0,0.00037327,3]
[358561419,1745262632387,-200.0,0.00037327,30]
[358561420,1745262632403,-182.62104569,0.00037328,2]
[358561421,1745262632416,-2746.32998428,0.00037328,2]
[358561422,1745262632430,-3332.6871248,0.00037328,2]
[358561423,1745262632445,-7419.97526,0.00037328,2]
[358561425,1745262632458,-1244.15535,0.00037328,2]
[358561432,1745262632504,-1880.00001,0.00037328,2]
[358561437,1745262632540,-319.0,0.00037328,2]
[358561438,1745262632555,-934.33,0.00037328,2]
[358561624,1745262640170,-2741.68367507,0.00037328,2]
[358561663,1745262640569,-1234.69500997,0.00037328,2]
[358561666,1745262640581,-1864.52254019,0.00037328,2]
[358561668,1745262640590,-401.95436863,0.00037328,2]
[358561669,1745262640600,-453.7,0.00037641,2]
[358561670,1745262640610,-250.0,0.00037641,7]
[358561671,1745262640619,-1245.83,0.00037857,5]
[358561672,1745262640629,-755.9930516,0.00037857,5]
[358561673,1745262640640,-499.8069484,0.00037857,5]
[358561674,1745262640650,-1258.08,0.00037857,5]
[358561675,1745262640659,-1241.09,0.00037857,5]
[358561676,1745262640668,-1271.05,0.00037857,5]
[358561677,1745262640677,-1229.55,0.00037857,5]
[358561678,1745262640687,-215.55045969,0.00037857,5]
[358561685,1745262640758,-1049.74954031,0.00037857,5]
[358561687,1745262640768,-1260.09,0.00037858,5]
[358561690,1745262640777,-1270.56,0.00037858,5]
[358561693,1745262640787,-1246.68,0.00037858,5]
[358561696,1745262640795,-1243.8,0.00037884,5]
[358561699,1745262640805,-1228.28,0.00037884,5]
[358561701,1745262640814,-265.20218519,0.00037884,5]
[358561703,1745262640825,-1005.41781481,0.00037884,5]
[358561705,1745262640835,-342.05654741,0.000379,14]
[358561707,1745262640846,-579.38085,0.000379,14]
[358561709,1745262640858,-4410.65298354,0.000379,14]
[358561711,1745262640867,-5966.93780702,0.00038,7]
[358561724,1745262640977,-1135.96567531,0.00038,7]
[358561726,1745262640988,-2169.1,0.00038,7]
[358561729,1745262641004,-8727.99651767,0.00038,7]
[358561731,1745262641013,-1000.0,0.0003831,2]
[358561733,1745262641023,-171.89275619,0.00038356,51]
[358561735,1745262641031,-1523.572,0.00038356,51]
[358561737,1745262641043,-700.0,0.00039,2]
[358561739,1745262641054,-299.73,0.00039,2]
[358561741,1745262641063,-305.49,0.00039235,2]
[358561743,1745262641073,-1500.0,0.00039776,120]
[358561745,1745262641082,-250.0,0.00039846,2]
[358561747,1745262641093,-169.65,0.0004,30]
[358561749,1745262641102,-560.0,0.00040079,5]
[358561751,1745262641111,-150.0,0.00040093,2]
[358561753,1745262641121,-170.0,0.00041,14]
[358561755,1745262641131,-750.0,0.00041,2]
[358561757,1745262641140,-299.73,0.00041,2]
[358561759,1745262641149,-212.29,0.00041095,120]
[358561761,1745262641158,-177.70927984,0.00041096,2]
[358561762,1745262641167,-200.0,0.00041129,2]
[358561764,1745262641176,-305.49,0.00041499,2]
[358561766,1745262641185,-237.03422608,0.00042,120]
[358561768,1745262641194,-1000.0,0.00042,5]
[358561770,1745262641203,-212.29,0.00042465,120]
[358561772,1745262641213,-3696.5353393,0.00042654,4]